fUST/lending_fUST_20260605
["ID","MTS","AMOUNT","RATE_DAILY","PERIOD"]
[424099211,1780589216000,-403.28815122,9.319e-05,3]
[424099317,1780589432000,-152.0,0.00010201,7]
[424099319,1780589432000,-238.94694999,0.00010634,2]
[424099329,1780589432000,-164.0,0.00010958,2]
[424099331,1780589432000,-300.0,0.00010958,2]
[424099333,1780589432000,-1200.0,0.00010958,2]
[424099341,1780589432000,-622.30858591,0.00010959,2]
[424099337,1780589432000,-1204.33855349,0.00010959,2]
[424099327,1780589432000,-300.0,0.00010958,2]
[424099320,1780589432000,-1100.19246559,0.00010741,2]
[424099322,1780589432000,-5000.0,0.00010849,2]
[424099335,1780589432000,-2995.15410892,0.00010959,2]
[424099419,1780589438000,-2589.7648026,0.00010849,2]
[424099420,1780589438000,-4725.31658188,0.00010959,2]
[424099421,1780589438000,-300.0,0.00011177,2]
[424099422,1780589438000,-300.0,0.00011177,2]
[424099423,1780589438000,-300.0,0.00011177,2]
[424099427,1780589438000,-300.0,0.00011177,2]
[424099428,1780589438000,-300.0,0.00011177,2]
[424099424,1780589438000,-300.0,0.00011177,2]
[424099426,1780589438000,-300.0,0.00011177,2]
[424099430,1780589438000,-300.0,0.00011177,2]
[424099429,1780589438000,-300.0,0.00011177,2]
[424099425,1780589438000,-300.0,0.00011177,2]
[424099433,1780589439000,-300.0,0.00011177,2]
[424099431,1780589439000,-300.0,0.00011177,2]
[424099434,1780589439000,-300.0,0.00011177,2]
[424099432,1780589439000,-300.0,0.00011177,2]
[424099437,1780589439000,-21181.76719032,0.00011977,2]
[424099436,1780589439000,-321.941035,0.00011965,2]
[424099435,1780589439000,-300.0,0.00011177,2]
[424099438,1780589439000,-447.78193819,0.00011977,2]
[424099475,1780589442000,-347.0,0.00013233,2]
[424099486,1780589442000,-1879.40263948,0.00013598,2]
[424099474,1780589442000,-321.941035,0.00012972,2]
[424099484,1780589442000,-720.0,0.00013436,2]
[424099481,1780589442000,-500.0,0.00013424,2]
[424099487,1780589442000,-1879.40263947,0.00013622,2]
[424099489,1780589442000,-189.93628803,0.00013667,2]
[424099499,1780589442000,-500.0,0.00013698,2]
[424099488,1780589442000,-1879.40263947,0.00013646,2]
[424099493,1780589442000,-501.66737489,0.00013698,2]
[424099495,1780589442000,-500.0,0.00013698,2]
[424099490,1780589442000,-159.162,0.00013667,2]
[424099494,1780589442000,-1275.1825,0.00013698,2]
[424099498,1780589442000,-500.0,0.00013698,2]
[424099492,1780589442000,-1879.40263947,0.00013694,2]
[424099491,1780589442000,-1879.40263947,0.0001367,2]
[424099496,1780589442000,-500.0,0.00013698,2]
[424099501,1780589442000,-500.0,0.00013698,2]
[424099485,1780589442000,-321.941035,0.00013475,2]
[424099497,1780589442000,-500.0,0.00013698,2]
[424099479,1780589442000,-537.427,0.00013424,2]
[424099466,1780589442000,-1415.0,0.00012432,2]
[424099476,1780589442000,-349.0,0.00013233,2]
[424099459,1780589442000,-459.34763194,0.00011977,2]
[424099458,1780589442000,-2351.36822206,0.00011977,2]
[424099461,1780589442000,-151.09,0.00012,2]
[424099470,1780589442000,-444.0,0.00012432,2]
[424099468,1780589442000,-3631.0,0.00012432,2]
[424099467,1780589442000,-1837.0,0.00012432,2]
[424099460,1780589442000,-1384.41561229,0.00011977,2]
[424099469,1780589442000,-2206.0,0.00012432,2]
[424099463,1780589442000,-420.0,0.00012042,2]
[424099511,1780589442000,-500.0,0.00013698,2]
[424099471,1780589442000,-541.119,0.00012432,2]
[424099472,1780589442000,-202.222,0.00012432,2]
[424099462,1780589442000,-420.0,0.00012042,2]
[424099464,1780589442000,-1680.0,0.00012054,2]
[424099465,1780589442000,-600.0,0.00012215,2]
[424099473,1780589442000,-321.941035,0.00012468,2]
[424099478,1780589442000,-228.58886623,0.00013424,2]
[424099480,1780589442000,-500.0,0.00013424,2]
[424099483,1780589442000,-709.564,0.00013424,2]
[424099477,1780589442000,-2351.0,0.00013259,2]
[424099502,1780589442000,-500.0,0.00013698,2]
[424099482,1780589442000,-500.0,0.00013424,2]
[424099500,1780589442000,-500.0,0.00013698,2]
[424099528,1780589442000,-987.12,0.00013698,2]
[424099530,1780589442000,-500.0,0.00013698,2]
[424099536,1780589442000,-502.10872548,0.00013698,2]
[424099539,1780589442000,-541.96793413,0.00013698,2]
[424099532,1780589442000,-500.0,0.00013698,2]
[424099541,1780589442000,-500.0,0.00013698,2]
[424099533,1780589442000,-500.0,0.00013698,2]
[424099537,1780589442000,-502.32392258,0.00013698,2]
[424099535,1780589442000,-163.79444771,0.00013698,2]
[424099529,1780589442000,-500.0,0.00013698,2]
[424099534,1780589442000,-500.0,0.00013698,2]
[424099545,1780589442000,-500.0,0.00013698,2]
[424099553,1780589442000,-500.0,0.00013698,2]
[424099547,1780589442000,-570.76654642,0.00013698,2]
[424099549,1780589442000,-151.62656856,0.00013698,2]
[424099548,1780589442000,-2515.87,0.00013698,2]
[424099552,1780589442000,-500.0,0.00013698,2]
[424099550,1780589442000,-500.0,0.00013698,2]
[424099551,1780589442000,-500.0,0.00013698,2]
[424099512,1780589442000,-765.96,0.00013698,2]
[424099531,1780589442000,-500.0,0.00013698,2]
[424099527,1780589442000,-500.0,0.00013698,2]
[424099543,1780589442000,-500.0,0.00013698,2]
[424099521,1780589442000,-500.0,0.00013698,2]
[424099503,1780589442000,-500.0,0.00013698,2]
[424099522,1780589442000,-500.0,0.00013698,2]
[424099509,1780589442000,-500.0,0.00013698,2]
[424099510,1780589442000,-500.0,0.00013698,2]
[424099505,1780589442000,-500.0,0.00013698,2]
[424099506,1780589442000,-500.0,0.00013698,2]
[424099504,1780589442000,-500.0,0.00013698,2]
[424099508,1780589442000,-241.85,0.00013698,2]
[424099524,1780589442000,-500.0,0.00013698,2]
[424099514,1780589442000,-500.0,0.00013698,2]
[424099507,1780589442000,-500.0,0.00013698,2]
[424099526,1780589442000,-500.0,0.00013698,2]
[424099516,1780589442000,-502.99230635,0.00013698,2]
[424099515,1780589442000,-501.6709038,0.00013698,2]
[424099513,1780589442000,-500.0,0.00013698,2]
[424099518,1780589442000,-500.0,0.00013698,2]
[424099519,1780589442000,-500.0,0.00013698,2]
[424099517,1780589442000,-585.31,0.00013698,2]
[424099525,1780589442000,-500.0,0.00013698,2]
[424099520,1780589442000,-500.0,0.00013698,2]
[424099523,1780589442000,-500.0,0.00013698,2]
[424099597,1780589443000,-500.0,0.00013698,2]
[424099594,1780589443000,-501.92994009,0.00013698,2]
[424099593,1780589443000,-500.0,0.00013698,2]
[424099596,1780589443000,-500.0,0.00013698,2]
[424099592,1780589443000,-500.0,0.00013698,2]
[424099599,1780589443000,-503.26915797,0.00013698,2]
[424099589,1780589443000,-500.32655012,0.00013698,2]
[424099591,1780589443000,-500.0,0.00013698,2]
[424099587,1780589443000,-500.0,0.00013698,2]
[424099598,1780589443000,-501.05073867,0.00013698,2]
[424099595,1780589443000,-500.0,0.00013698,2]
[424099600,1780589443000,-501.18335167,0.00013698,2]
[424099590,1780589443000,-500.0,0.00013698,2]
[424099601,1780589443000,-500.0,0.00013698,2]
[424099611,1780589443000,-500.0,0.00013698,2]
[424099608,1780589443000,-589.99,0.00013698,2]
[424099604,1780589443000,-2201.03,0.00013698,2]
[424099606,1780589443000,-1791.1,0.00013698,2]
[424099605,1780589443000,-502.72017845,0.00013698,2]
[424099607,1780589443000,-503.06113762,0.00013698,2]
[424099602,1780589443000,-500.0,0.00013698,2]
[424099612,1780589443000,-1019.56,0.00013698,2]
[424099609,1780589443000,-500.0,0.00013698,2]
[424099610,1780589443000,-390.0,0.00013698,2]
[424099614,1780589443000,-500.0,0.00013698,2]
[424099613,1780589443000,-500.0,0.00013698,2]
[424099588,1780589443000,-500.0,0.00013698,2]
[424099616,1780589443000,-500.0,0.00013698,2]
[424099603,1780589443000,-500.0,0.00013698,2]
[424099580,1780589443000,-556.62,0.00013698,2]
[424099563,1780589443000,-500.0,0.00013698,2]
[424099585,1780589443000,-500.0,0.00013698,2]
[424099623,1780589443000,-500.0,0.00013698,2]
[424099556,1780589443000,-500.0,0.00013698,2]
[424099555,1780589443000,-500.0,0.00013698,2]
[424099554,1780589443000,-500.0,0.00013698,2]
[424099557,1780589443000,-172.49168974,0.00013698,2]
[424099558,1780589443000,-500.0,0.00013698,2]
[424099570,1780589443000,-500.0,0.00013698,2]
[424099572,1780589443000,-501.0429184,0.00013698,2]
[424099561,1780589443000,-500.0,0.00013698,2]
[424099568,1780589443000,-500.0,0.00013698,2]
[424099562,1780589443000,-501.29559445,0.00013698,2]
[424099559,1780589443000,-511.22,0.00013698,2]
[424099564,1780589443000,-500.0,0.00013698,2]
[424099584,1780589443000,-500.0,0.00013698,2]
[424099571,1780589443000,-500.0,0.00013698,2]
[424099567,1780589443000,-500.0,0.00013698,2]
[424099566,1780589443000,-500.0,0.00013698,2]
[424099569,1780589443000,-802.73,0.00013698,2]
[424099573,1780589443000,-500.0,0.00013698,2]
[424099575,1780589443000,-500.0,0.00013698,2]
[424099577,1780589443000,-562.09846624,0.00013698,2]
[424099578,1780589443000,-946.4,0.00013698,2]
[424099576,1780589443000,-500.0,0.00013698,2]
[424099574,1780589443000,-500.38539459,0.00013698,2]
[424099582,1780589443000,-500.0,0.00013698,2]
[424099581,1780589443000,-502.3718133,0.00013698,2]
[424099586,1780589443000,-500.0,0.00013698,2]
[424099583,1780589443000,-500.0,0.00013698,2]
[424099565,1780589443000,-500.97057572,0.00013698,2]
[424099620,1780589443000,-501.56575587,0.00013698,2]
[424099579,1780589443000,-577.42,0.00013698,2]
[424099619,1780589443000,-500.90549987,0.00013698,2]
[424099645,1780589443000,-500.0,0.00013698,2]
[424099650,1780589443000,-500.0,0.00013698,2]
[424099648,1780589443000,-500.0,0.00013698,2]
[424099657,1780589443000,-500.0,0.00013698,2]
[424099667,1780589443000,-500.0,0.00013698,2]
[424099682,1780589443000,-501.53825416,0.00013698,2]
[424099661,1780589443000,-500.0,0.00013698,2]
[424099659,1780589443000,-2280.2,0.00013698,2]
[424099668,1780589443000,-500.0,0.00013698,2]
[424099669,1780589443000,-500.0,0.00013698,2]
[424099656,1780589443000,-500.0,0.00013698,2]
[424099658,1780589443000,-500.0,0.00013698,2]
[424099660,1780589443000,-500.0,0.00013698,2]
[424099663,1780589443000,-484.99372825,0.00013698,2]
[424099662,1780589443000,-500.0,0.00013698,2]
[424099666,1780589443000,-500.0,0.00013698,2]
[424099664,1780589443000,-500.0,0.00013698,2]
[424099675,1780589443000,-500.0,0.00013698,2]
[424099671,1780589443000,-500.73974542,0.00013698,2]
[424099670,1780589443000,-500.0,0.00013698,2]
[424099673,1780589443000,-500.0,0.00013698,2]
[424099672,1780589443000,-514.78,0.00013698,2]
[424099676,1780589443000,-500.0,0.00013698,2]
[424099674,1780589443000,-500.0,0.00013698,2]
[424099677,1780589443000,-500.0,0.00013698,2]
[424099678,1780589443000,-500.0,0.00013698,2]
[424099680,1780589443000,-500.0,0.00013698,2]
[424099679,1780589443000,-500.0,0.00013698,2]
[424099681,1780589443000,-217.99,0.00013698,2]
[424099647,1780589443000,-519.4682786,0.00013698,2]
[424099651,1780589443000,-500.0,0.00013698,2]
[424099617,1780589443000,-500.0,0.00013698,2]
[424099652,1780589443000,-500.0,0.00013698,2]
[424099624,1780589443000,-500.0,0.00013698,2]
[424099621,1780589443000,-500.7784865,0.00013698,2]
[424099626,1780589443000,-500.0,0.00013698,2]
[424099618,1780589443000,-500.0,0.00013698,2]
[424099622,1780589443000,-500.0,0.00013698,2]
[424099628,1780589443000,-500.0,0.00013698,2]
[424099625,1780589443000,-500.0,0.00013698,2]
[424099615,1780589443000,-500.0,0.00013698,2]
[424099649,1780589443000,-500.0,0.00013698,2]
[424099630,1780589443000,-500.0,0.00013698,2]
[424099631,1780589443000,-500.0,0.00013698,2]
[424099632,1780589443000,-500.0,0.00013698,2]
[424099629,1780589443000,-500.0,0.00013698,2]
[424099634,1780589443000,-500.0,0.00013698,2]
[424099627,1780589443000,-500.0,0.00013698,2]
[424099635,1780589443000,-1000.0,0.00013698,2]
[424099633,1780589443000,-500.0,0.00013698,2]
[424099646,1780589443000,-500.0,0.00013698,2]
[424099654,1780589443000,-500.0,0.00013698,2]
[424099655,1780589443000,-501.47718794,0.00013698,2]
[424099653,1780589443000,-500.0,0.00013698,2]
[424099642,1780589443000,-500.0,0.00013698,2]
[424099644,1780589443000,-501.74443878,0.00013698,2]
[424099639,1780589443000,-889.78,0.00013698,2]
[424099641,1780589443000,-500.0,0.00013698,2]
[424099640,1780589443000,-501.34231185,0.00013698,2]
[424099638,1780589443000,-500.0,0.00013698,2]
[424099637,1780589443000,-480.56154152,0.00013698,2]
[424099636,1780589443000,-598.92817112,0.00013698,2]
[424099643,1780589443000,-500.0,0.00013698,2]
[424099733,1780589444000,-500.0,0.00013698,2]
[424099728,1780589444000,-500.0,0.00013698,2]
[424099727,1780589444000,-500.0,0.00013698,2]
[424099726,1780589444000,-500.0,0.00013698,2]
[424099725,1780589444000,-500.0,0.00013698,2]
[424099721,1780589444000,-500.0,0.00013698,2]
[424099724,1780589444000,-500.0,0.00013698,2]
[424099729,1780589444000,-500.0,0.00013698,2]
[424099723,1780589444000,-670.93,0.00013698,2]
[424099730,1780589444000,-1024.0,0.00013698,2]
[424099719,1780589444000,-500.0,0.00013698,2]
[424099722,1780589444000,-332.7018924,0.00013698,2]
[424099742,1780589444000,-500.0,0.00013698,2]
[424099747,1780589444000,-1000.0,0.00013698,2]
[424099736,1780589444000,-504.38465574,0.00013698,2]
[424099734,1780589444000,-500.0,0.00013698,2]
[424099735,1780589444000,-500.0,0.00013698,2]
[424099743,1780589444000,-500.0,0.00013698,2]
[424099745,1780589444000,-500.0,0.00013698,2]
[424099744,1780589444000,-765.44,0.00013698,2]
[424099737,1780589444000,-500.0,0.00013698,2]
[424099738,1780589444000,-501.00125911,0.00013698,2]
[424099740,1780589444000,-500.0,0.00013698,2]
[424099741,1780589444000,-500.0,0.00013698,2]
[424099739,1780589444000,-500.0,0.00013698,2]
[424099756,1780589444000,-500.0,0.00013698,2]
[424099746,1780589444000,-500.99584221,0.00013698,2]
[424099731,1780589444000,-500.0,0.00013698,2]
[424099732,1780589444000,-500.0,0.00013698,2]
[424099720,1780589444000,-500.0,0.00013698,2]
[424099700,1780589444000,-567.5,0.00013698,2]
[424099708,1780589444000,-500.0,0.00013698,2]
[424099748,1780589444000,-500.0,0.00013698,2]
[424099683,1780589444000,-500.0,0.00013698,2]
[424099685,1780589444000,-402.31104959,0.00013698,2]
[424099686,1780589444000,-462.51119839,0.00013698,2]
[424099687,1780589444000,-500.0,0.00013698,2]
[424099688,1780589444000,-419.29849892,0.00013698,2]
[424099689,1780589444000,-500.0,0.00013698,2]
[424099692,1780589444000,-500.0,0.00013698,2]
[424099691,1780589444000,-500.0,0.00013698,2]
[424099693,1780589444000,-500.0,0.00013698,2]
[424099694,1780589444000,-500.0,0.00013698,2]
[424099695,1780589444000,-500.0,0.00013698,2]
[424099696,1780589444000,-500.0,0.00013698,2]
[424099697,1780589444000,-500.0,0.00013698,2]
[424099690,1780589444000,-571.97,0.00013698,2]
[424099698,1780589444000,-555.22520449,0.00013698,2]
[424099699,1780589444000,-728.73,0.00013698,2]
[424099701,1780589444000,-500.0,0.00013698,2]
[424099702,1780589444000,-526.21,0.00013698,2]
[424099703,1780589444000,-500.0,0.00013698,2]
[424099705,1780589444000,-500.0,0.00013698,2]
[424099714,1780589444000,-500.0,0.00013698,2]
[424099713,1780589444000,-444.58,0.00013698,2]
[424099715,1780589444000,-500.0,0.00013698,2]
[424099706,1780589444000,-500.0,0.00013698,2]
[424099709,1780589444000,-500.0,0.00013698,2]
[424099718,1780589444000,-500.0,0.00013698,2]
[424099710,1780589444000,-500.0,0.00013698,2]
[424099717,1780589444000,-654.61,0.00013698,2]
[424099711,1780589444000,-500.0,0.00013698,2]
[424099684,1780589444000,-500.0,0.00013698,2]
[424099757,1780589444000,-500.0,0.00013698,2]
[424099754,1780589444000,-399.77782748,0.00013698,2]
[424099799,1780589444000,-500.0,0.00013698,2]
[424099790,1780589444000,-2341.85,0.00013698,2]
[424099794,1780589444000,-500.0,0.00013698,2]
[424099791,1780589444000,-500.0,0.00013698,2]
[424099802,1780589444000,-500.0,0.00013698,2]
[424099801,1780589444000,-500.0,0.00013698,2]
[424099796,1780589444000,-500.0,0.00013698,2]
[424099803,1780589444000,-1040.92,0.00013698,2]
[424099795,1780589444000,-501.03988881,0.00013698,2]
[424099797,1780589444000,-500.0,0.00013698,2]
[424099804,1780589444000,-200.62053425,0.00013698,2]
[424099806,1780589444000,-500.0,0.00013698,2]
[424099816,1780589444000,-500.0,0.00013698,2]
[424099805,1780589444000,-500.0,0.00013698,2]
[424099814,1780589444000,-500.0,0.00013698,2]
[424099813,1780589444000,-500.0,0.00013698,2]
[424099810,1780589444000,-500.0,0.00013698,2]
[424099812,1780589444000,-1127.29,0.00013698,2]
[424099809,1780589444000,-500.0,0.00013698,2]
[424099808,1780589444000,-1047.04,0.00013698,2]
[424099807,1780589444000,-566.51,0.00013698,2]
[424099815,1780589444000,-500.0,0.00013698,2]
[424099811,1780589444000,-500.0,0.00013698,2]
[424099821,1780589444000,-500.0,0.00013698,2]
[424099822,1780589444000,-501.71319614,0.00013698,2]
[424099820,1780589444000,-3183.02,0.00013698,2]
[424099819,1780589444000,-500.0,0.00013698,2]
[424099818,1780589444000,-500.0,0.00013698,2]
[424099752,1780589444000,-12161.64,0.00013698,2]
[424099800,1780589444000,-500.0,0.00013698,2]
[424099798,1780589444000,-500.0,0.00013698,2]
[424099817,1780589444000,-511.54751906,0.00013698,2]
[424099781,1780589444000,-500.0,0.00013698,2]
[424099787,1780589444000,-500.0,0.00013698,2]
[424099751,1780589444000,-500.0,0.00013698,2]
[424099753,1780589444000,-501.02292537,0.00013698,2]
[424099749,1780589444000,-500.0,0.00013698,2]
[424099755,1780589444000,-500.0,0.00013698,2]
[424099758,1780589444000,-500.0,0.00013698,2]
[424099761,1780589444000,-500.0,0.00013698,2]
[424099760,1780589444000,-500.0,0.00013698,2]
[424099762,1780589444000,-500.0,0.00013698,2]
[424099768,1780589444000,-1424.81,0.00013698,2]
[424099767,1780589444000,-500.0,0.00013698,2]
[424099759,1780589444000,-500.0,0.00013698,2]
[424099763,1780589444000,-500.0,0.00013698,2]
[424099764,1780589444000,-500.0,0.00013698,2]
[424099766,1780589444000,-500.0,0.00013698,2]
[424099750,1780589444000,-500.0,0.00013698,2]
[424099770,1780589444000,-500.0,0.00013698,2]
[424099769,1780589444000,-3210.41,0.00013698,2]
[424099776,1780589444000,-521.51,0.00013698,2]
[424099773,1780589444000,-503.46413818,0.00013698,2]
[424099786,1780589444000,-607.95637978,0.00013698,2]
[424099775,1780589444000,-500.0,0.00013698,2]
[424099778,1780589444000,-346.84154924,0.00013698,2]
[424099774,1780589444000,-500.0,0.00013698,2]
[424099780,1780589444000,-500.0,0.00013698,2]
[424099783,1780589444000,-1987.77,0.00013698,2]
[424099782,1780589444000,-500.0,0.00013698,2]
[424099771,1780589444000,-923.32,0.00013698,2]
[424099772,1780589444000,-500.0,0.00013698,2]
[424099765,1780589444000,-676.34,0.00013698,2]
[424099777,1780589444000,-578.01,0.00013698,2]
[424099866,1780589445000,-2950.0,0.00013699,2]
[424099864,1780589445000,-2950.0,0.00013699,2]
[424099862,1780589445000,-2950.0,0.00013699,2]
[424099865,1780589445000,-2950.0,0.00013699,2]
[424099854,1780589445000,-2950.0,0.00013699,2]
[424099863,1780589445000,-2950.0,0.00013699,2]
[424099869,1780589445000,-2950.0,0.00013699,2]
[424099861,1780589445000,-2950.0,0.00013699,2]
[424099858,1780589445000,-2950.0,0.00013699,2]
[424099868,1780589445000,-2950.0,0.00013699,2]
[424099859,1780589445000,-2950.0,0.00013699,2]
[424099867,1780589445000,-2950.0,0.00013699,2]
[424099860,1780589445000,-2950.0,0.00013699,2]
[424099873,1780589445000,-2960.64841681,0.00013699,2]
[424099881,1780589445000,-2656.90766,0.00013735,2]
[424099872,1780589445000,-2950.0,0.00013699,2]
[424099874,1780589445000,-2656.90766,0.00013699,2]
[424099871,1780589445000,-2950.0,0.00013699,2]
[424099875,1780589445000,-2656.90766,0.00013699,2]
[424099876,1780589445000,-2656.90766,0.00013699,2]
[424099879,1780589445000,-2656.90766,0.00013735,2]
[424099878,1780589445000,-2656.90766,0.00013735,2]
[424099882,1780589445000,-500.0,0.00013793,2]
[424099877,1780589445000,-2656.90766,0.00013699,2]
[424099880,1780589445000,-2656.90766,0.00013735,2]
[424099883,1780589445000,-199.36,0.00013793,2]
[424099884,1780589445000,-65082.39859831,0.00013794,2]
[424099893,1780589445000,-500.0,0.00013972,2]
[424099855,1780589445000,-2950.0,0.00013699,2]
[424099870,1780589445000,-2950.0,0.00013699,2]
[424099850,1780589445000,-2950.0,0.00013699,2]
[424099892,1780589445000,-452.74788967,0.00013972,2]
[424099845,1780589445000,-2656.90766,0.00013699,2]
[424099825,1780589445000,-500.0,0.00013698,2]
[424099828,1780589445000,-2231.45,0.00013698,2]
[424099827,1780589445000,-2288.73,0.00013698,2]
[424099823,1780589445000,-500.0,0.00013698,2]
[424099826,1780589445000,-500.0,0.00013698,2]
[424099824,1780589445000,-500.0,0.00013698,2]
[424099830,1780589445000,-500.0,0.00013698,2]
[424099831,1780589445000,-500.0,0.00013698,2]
[424099829,1780589445000,-500.0,0.00013698,2]
[424099836,1780589445000,-500.0,0.00013698,2]
[424099842,1780589445000,-2656.90766,0.00013699,2]
[424099833,1780589445000,-500.0,0.00013698,2]
[424099841,1780589445000,-18596.2457977,0.00013699,2]
[424099837,1780589445000,-500.0,0.00013698,2]
[424099848,1780589445000,-2656.90766,0.00013699,2]
[424099832,1780589445000,-504.18624744,0.00013698,2]
[424099834,1780589445000,-500.0,0.00013698,2]
[424099835,1780589445000,-500.0,0.00013698,2]
[424099844,1780589445000,-2656.90766,0.00013699,2]
[424099839,1780589445000,-1000.0,0.00013699,2]
[424099843,1780589445000,-2656.90766,0.00013699,2]
[424099840,1780589445000,-683.849416,0.00013699,2]
[424099846,1780589445000,-2656.90766,0.00013699,2]
[424099856,1780589445000,-2950.0,0.00013699,2]
[424099851,1780589445000,-2950.0,0.00013699,2]
[424099847,1780589445000,-2656.90766,0.00013699,2]
[424099857,1780589445000,-2950.0,0.00013699,2]
[424099852,1780589445000,-2950.0,0.00013699,2]
[424099853,1780589445000,-2950.0,0.00013699,2]
[424099849,1780589445000,-2656.90766,0.00013699,2]
[424099838,1780589445000,-398.77607,0.00013699,2]
[424099894,1780589445000,-500.0,0.00013972,2]
[424099933,1780589445000,-219.57916554,0.00013972,2]
[424099896,1780589445000,-500.0,0.00013972,2]
[424099924,1780589445000,-500.0,0.00013972,2]
[424099926,1780589445000,-511.22,0.00013972,2]
[424099929,1780589445000,-584.512839,0.00013972,2]
[424099927,1780589445000,-500.0,0.00013972,2]
[424099928,1780589445000,-498.79694589,0.00013972,2]
[424099932,1780589445000,-500.0,0.00013972,2]
[424099956,1780589445000,-500.0,0.00013972,2]
[424099925,1780589445000,-514.29138668,0.00013972,2]
[424099934,1780589445000,-946.4,0.00013972,2]
[424099936,1780589445000,-500.0,0.00013972,2]
[424099931,1780589445000,-802.73,0.00013972,2]
[424099937,1780589445000,-503.22230869,0.00013972,2]
[424099930,1780589445000,-500.0,0.00013972,2]
[424099935,1780589445000,-577.42,0.00013972,2]
[424099913,1780589445000,-500.0,0.00013972,2]
[424099939,1780589445000,-500.0,0.00013972,2]
[424099951,1780589445000,-500.0,0.00013972,2]
[424099949,1780589445000,-500.0,0.00013972,2]
[424099941,1780589445000,-612.15197505,0.00013972,2]
[424099947,1780589445000,-500.0,0.00013972,2]
[424099938,1780589445000,-500.0,0.00013972,2]
[424099944,1780589445000,-1791.1,0.00013972,2]
[424099945,1780589445000,-609.31407411,0.00013972,2]
[424099940,1780589445000,-500.0,0.00013972,2]
[424099948,1780589445000,-1019.56,0.00013972,2]
[424099942,1780589445000,-500.0,0.00013972,2]
[424099943,1780589445000,-2201.03,0.00013972,2]
[424099946,1780589445000,-589.99,0.00013972,2]
[424099955,1780589445000,-500.0,0.00013972,2]
[424099895,1780589445000,-500.0,0.00013972,2]
[424099950,1780589445000,-502.28075827,0.00013972,2]
[424099918,1780589445000,-2515.87,0.00013972,2]
[424099953,1780589445000,-500.0,0.00013972,2]
[424099916,1780589445000,-500.0,0.00013972,2]
[424099914,1780589445000,-500.0,0.00013972,2]
[424099885,1780589445000,-2656.90766,0.00013794,2]
[424099888,1780589445000,-2656.907668,0.00013794,2]
[424099887,1780589445000,-2656.90766,0.00013794,2]
[424099889,1780589445000,-1275.1825,0.00013972,2]
[424099891,1780589445000,-500.0,0.00013972,2]
[424099890,1780589445000,-500.0,0.00013972,2]
[424099897,1780589445000,-765.96,0.00013972,2]
[424099898,1780589445000,-500.0,0.00013972,2]
[424099906,1780589445000,-500.0,0.00013972,2]
[424099899,1780589445000,-585.31,0.00013972,2]
[424099908,1780589445000,-500.0,0.00013972,2]
[424099907,1780589445000,-500.0,0.00013972,2]
[424099909,1780589445000,-987.12,0.00013972,2]
[424099901,1780589445000,-500.0,0.00013972,2]
[424099886,1780589445000,-2656.90766,0.00013794,2]
[424099904,1780589445000,-500.0,0.00013972,2]
[424099903,1780589445000,-500.0,0.00013972,2]
[424099915,1780589445000,-500.0,0.00013972,2]
[424099917,1780589445000,-500.0,0.00013972,2]